bitfinex/quotes_BTCUSD_20230115
["timestamp","ask_amount","ask_price","bid_price","bid_amount"]
[1673790603536,0.66691306,20737.0,20736.0,0.49927209]
[1673790603797,1.14795121,20737.0,20736.0,0.98152509]
[1673790604075,0.82687421,20737.0,20736.0,0.98152509]
[1673790606127,0.70838421,20737.0,20736.0,0.98152509]
[1673790606371,0.54842306,20737.0,20736.0,0.98152509]
[1673790607115,0.54842306,20737.0,20736.0,0.98162712]
[1673790609931,0.54842306,20737.0,20736.0,0.98152509]
[1673790610183,0.54842306,20737.0,20736.0,0.98162712]
[1673790610431,0.67244935,20737.0,20736.0,0.98152509]
[1673790610925,0.54842306,20737.0,20736.0,0.98152509]
[1673790611168,0.54842306,20737.0,20736.0,1.32779373]
[1673790611418,0.54842306,20737.0,20736.0,1.47167162]
[1673790611666,0.54842306,20737.0,20736.0,1.77167162]
[1673790611925,0.54842306,20737.0,20736.0,2.10852759]
[1673790612170,0.54842306,20737.0,20736.0,1.9646497]
[1673790612421,0.54842306,20737.0,20736.0,1.80848482]
[1673790612665,0.54842306,20737.0,20736.0,1.6646497]
[1673790612914,0.54842306,20737.0,20736.0,1.9646497]
[1673790613160,0.54842306,20737.0,20736.0,1.6646497]
[1673790613401,0.54842306,20737.0,20736.0,1.80846188]
[1673790613649,0.54842306,20737.0,20736.0,1.47160591]
[1673790613898,0.54842306,20737.0,20736.0,1.12533727]
[1673790614155,0.89991211,20737.0,20736.0,1.1254393]
[1673790614431,0.81052764,20737.0,20736.0,0.01710531]
[1673790614682,0.71812123,20737.0,20736.0,0.01710531]
[1673790615181,0.54842306,20737.0,20734.0,0.964577]
[1673790615433,0.54842306,20737.0,20732.0,0.77075326]
[1673790615434,0.88177869,20736.0,20732.0,0.19256546]
[1673790615680,0.54143216,20733.0,20732.0,0.04875328]
[1673790615940,0.86250916,20733.0,20732.0,0.04875328]
[1673790616186,0.54143216,20733.0,20731.0,0.79436059]
[1673790616444,0.54143216,20733.0,20731.0,0.482347]
[1673790616705,0.54143216,20733.0,20731.0,1.32066251]
[1673790616988,0.54143216,20733.0,20731.0,0.964716]
[1673790617212,0.54143216,20733.0,20731.0,0.96481806]
[1673790617707,0.54143216,20733.0,20731.0,0.964716]
[1673790618495,0.70517968,20733.0,20731.0,0.964716]
[1673790619538,0.12824929,20732.0,20731.0,0.964716]
[1673790619867,0.12824929,20732.0,20731.0,0.482347]
[1673790620282,0.15568636,20732.0,20729.0,0.482401]
[1673790620544,0.19072595,20732.0,20729.0,0.482401]
[1673790620795,0.54143216,20730.0,20729.0,0.482401]
[1673790622564,0.54143216,20730.0,20729.0,1.30296266]
[1673790622849,0.54143216,20730.0,20729.0,1.30306473]
[1673790623105,0.54143216,20730.0,20729.0,1.06554485]
[1673790623350,0.54143216,20730.0,20729.0,1.1087999]
[1673790623606,0.54143216,20730.0,20729.0,1.4896328]
[1673790624095,0.54143216,20730.0,20729.0,1.1087999]
[1673790624360,0.54143216,20730.0,20729.0,1.4087999]
[1673790624604,0.54143216,20730.0,20729.0,1.62437538]
[1673790624881,0.54143216,20730.0,20729.0,1.73271654]
[1673790625089,0.54143216,20730.0,20729.0,2.46088648]
[1673790625393,0.54143216,20730.0,20729.0,1.945311]
[1673790625901,0.54143216,20730.0,20729.0,2.245311]
[1673790626388,0.13804088,20733.0,20729.0,2.245311]
[1673790626635,0.54143216,20732.0,20729.0,2.34593778]
[1673790626882,0.54143216,20732.0,20729.0,2.245311]
[1673790627126,0.54143216,20732.0,20730.0,0.33328996]
[1673790627361,0.54143216,20732.0,20731.0,1.447107]
[1673790628610,0.54143216,20734.0,20731.0,1.54773378]
[1673790628857,0.54143216,20734.0,20733.0,0.1]
[1673790629123,0.54143216,20734.0,20733.0,1.546966]
[1673790629380,0.54143216,20734.0,20733.0,1.846966]
[1673790629885,0.54135962,20734.0,20733.0,1.99061525]
[1673790630145,0.54135962,20734.0,20733.0,2.33753737]
[1673790631155,0.54135962,20734.0,20733.0,2.81985937]
[1673790631421,0.54135962,20734.0,20733.0,2.47293725]
[1673790631665,0.54135962,20734.0,20733.0,2.79456272]
[1673790631914,0.54135962,20734.0,20733.0,2.69456272]
[1673790632158,0.54135962,20734.0,20733.0,2.55091347]
[1673790632417,0.54135962,20734.0,20733.0,2.55101552]
[1673790632668,0.73208557,20734.0,20733.0,1.929288]
[1673790632913,0.73208557,20734.0,20733.0,1.446966]
[1673790632914,0.6996984,20734.0,20733.0,1.446966]
[1673790633166,0.6996984,20734.0,20733.0,1.47434546]
[1673790635200,0.6996984,20734.0,20733.0,0.99202346]
[1673790635451,0.6996984,20734.0,20733.0,0.50970146]
[1673790635944,0.54135962,20734.0,20733.0,1.46247079]
[1673790636201,0.54135962,20734.0,20733.0,1.36184401]
[1673790639810,0.54135962,20734.0,20733.0,0.99202346]
[1673790640051,0.54135962,20734.0,20733.0,1.38187577]
[1673790641852,0.54135962,20734.0,20733.0,2.04125122]
[1673790642103,0.54135962,20734.0,20733.0,1.84735469]
[1673790642403,0.54135962,20734.0,20733.0,2.14732919]
[1673790642698,0.54135962,20734.0,20733.0,2.00359567]
[1673790642903,0.54135962,20734.0,20733.0,2.14732764]
[1673790643167,0.54135962,20734.0,20733.0,2.77345625]
[1673790643707,0.0069909,20737.0,20733.0,2.09606536]
[1673790643949,0.54835052,20737.0,20734.0,0.3]
[1673790644211,0.54835052,20737.0,20735.0,1.446828]
[1673790645500,0.54835052,20737.0,20736.0,0.38715316]
[1673790645758,0.54835052,20737.0,20736.0,1.35165916]
[1673790646265,0.54835052,20737.0,20736.0,0.964506]
[1673790646575,0.67106983,20737.0,20736.0,0.964506]
[1673790653457,0.54835052,20737.0,20735.0,0.482276]
[1673790653723,0.54835052,20737.0,20734.0,0.482279]
[1673790653978,0.73907647,20737.0,20734.0,0.482279]
[1673790654254,0.321077,20736.0,20734.0,0.482279]
[1673790654516,0.214654,20735.0,20734.0,0.482279]
[1673790654773,0.69260787,20737.0,20733.0,0.02737946]
[1673790655031,0.54135962,20734.0,20733.0,0.02737946]
[1673790655295,0.75601362,20734.0,20733.0,0.02737946]
[1673790655578,0.54135962,20734.0,20733.0,0.02737946]
[1673790656083,0.66698025,20734.0,20733.0,0.02737946]
[1673790657040,1.47035625,20734.0,20733.0,0.02737946]
[1673790657041,0.98805725,20734.0,20733.0,0.02737946]
[1673790657297,0.66698025,20734.0,20733.0,0.02737946]
[1673790657804,0.66698025,20734.0,20733.0,0.99202346]
[1673790658058,0.54135962,20734.0,20733.0,0.99202346]
[1673790658323,0.54135962,20734.0,20733.0,1.29873508]
[1673790661189,0.54135962,20734.0,20733.0,0.99202346]
[1673790661709,0.68316586,20734.0,20733.0,0.99202346]
[1673790663324,0.68716586,20734.0,20733.0,1.03802346]
[1673790663850,0.47720169,20733.0,20727.0,0.64807021]
[1673790664121,0.02735,20728.0,20724.0,0.01354278]
[1673790664380,0.28891204,20726.0,20724.0,0.01354278]
[1673790664693,0.72852512,20730.0,20724.0,0.01354278]
[1673790664694,1.70321219,20725.0,20724.0,0.01354278]
[1673790664961,1.34208578,20725.0,20724.0,0.01354278]
[1673790665226,1.36805918,20725.0,20724.0,0.01354278]
[1673790665483,0.86243662,20725.0,20724.0,0.01354278]
[1673790666479,0.87143662,20725.0,20724.0,0.01354278]
[1673790667249,1.65075217,20725.0,20724.0,0.01354278]
[1673790667775,2.59475577,20725.0,20724.0,0.01354278]
[1673790668033,2.83824447,20725.0,20724.0,0.01354278]
[1673790668295,2.74246724,20725.0,20724.0,0.01354278]
[1673790668585,2.88633581,20725.0,20724.0,0.01354278]
[1673790668867,0.1,20724.0,20722.0,0.01490034]
[1673790669139,1.662319,20723.0,20722.0,0.01490034]
[1673790670204,1.962319,20723.0,20722.0,0.01490034]
[1673790670724,1.971319,20723.0,20722.0,0.01490034]
[1673790672614,1.971319,20723.0,20722.0,0.00990034]
[1673790673635,1.671319,20723.0,20722.0,0.00990034]
[1673790674115,0.76501362,20723.0,20722.0,0.40275597]
[1673790674381,0.76501362,20723.0,20722.0,0.40265387]
[1673790674636,0.55035962,20723.0,20722.0,0.29285387]
[1673790674891,0.87143662,20723.0,20722.0,0.29285387]
[1673790675406,0.86243662,20723.0,20722.0,0.29285387]
[1673790675666,0.86243662,20723.0,20722.0,0.43185387]
[1673790675667,0.54135962,20723.0,20722.0,0.43185387]
[1673790676993,0.54135962,20724.0,20722.0,0.43185387]
[1673790677294,0.54135962,20724.0,20722.0,0.9674547]
[1673790678032,0.54135962,20724.0,20722.0,1.4500327]
[1673790678304,0.54235962,20724.0,20722.0,1.3950327]
[1673790678563,0.54135962,20724.0,20722.0,1.3110327]
[1673790678830,0.54235962,20724.0,20722.0,1.3950327]
[1673790679341,0.54235962,20724.0,20722.0,1.05905434]
[1673790679590,0.54235962,20724.0,20723.0,0.37075895]
[1673790679853,0.54235962,20724.0,20723.0,0.85331395]
[1673790680379,0.001,20724.0,20723.0,0.96511]
[1673790681137,0.001,20724.0,20723.0,1.26511]
[1673790681391,0.04791075,20728.0,20723.0,1.45673678]
[1673790681719,0.04791075,20728.0,20724.0,0.40062678]
[1673790681913,0.54135962,20730.0,20725.0,0.20062678]
[1673790682192,0.59049681,20730.0,20726.0,0.10062678]
[1673790682455,0.59049681,20730.0,20727.0,1.64799778]
[1673790683017,0.59049681,20730.0,20727.0,1.547371]
[1673790684498,0.59049681,20730.0,20727.0,1.638371]
[1673790684502,0.59049681,20730.0,20727.0,1.547371]
[1673790684750,0.59049681,20730.0,20728.0,0.39383056]
[1673790685014,0.59049681,20730.0,20729.0,0.482415]
[1673790685268,0.54135962,20730.0,20729.0,0.96483]
[1673790687325,0.54135962,20732.0,20729.0,1.29371541]
[1673790687842,0.54135962,20732.0,20729.0,1.38471541]
[1673790688153,0.54135962,20732.0,20729.0,1.29371541]
[1673790688393,0.54135962,20732.0,20729.0,1.38471541]
[1673790688643,0.54135962,20732.0,20729.0,1.29371541]
[1673790688903,0.46751039,20728.0,20727.0,0.48246]
[1673790689172,1.41424996,20728.0,20727.0,0.48246]
[1673790689658,1.41424996,20728.0,20726.0,0.482473]
[1673790689659,1.00887001,20728.0,20726.0,0.482473]
[1673790690724,1.00887001,20728.0,20727.0,0.091]
[1673790690969,0.46751039,20728.0,20727.0,1.38377524]
[1673790691221,0.46751039,20728.0,20727.0,1.29277524]
[1673790691474,0.46851039,20728.0,20727.0,1.29277524]
[1673790691734,0.46751039,20728.0,20727.0,1.29277524]
[1673790691999,0.46851039,20728.0,20727.0,1.37677524]
[1673790692726,0.46851039,20728.0,20727.0,1.048924]
[1673790693009,0.46751039,20728.0,20727.0,1.264924]
[1673790693345,0.46851039,20728.0,20727.0,1.048924]
[1673790693541,0.46751039,20728.0,20727.0,1.264924]
[1673790693787,0.46751039,20728.0,20727.0,1.838386]
[1673790694041,0.46751039,20728.0,20727.0,1.747386]
[1673790694304,0.46751039,20728.0,20727.0,1.838386]
[1673790694563,0.46751039,20728.0,20727.0,1.747386]
[1673790695306,0.46751039,20728.0,20727.0,1.82045531]
[1673790696066,0.46751039,20728.0,20727.0,1.91145531]
[1673790696309,0.46751039,20728.0,20727.0,1.82045531]
[1673790696565,0.46751039,20728.0,20727.0,1.91145531]
[1673790696810,0.46751039,20728.0,20727.0,1.42899331]
[1673790697598,0.46751039,20728.0,20727.0,1.33799331]
[1673790698118,0.46751039,20728.0,20727.0,1.42899331]
[1673790699178,0.46751039,20728.0,20727.0,1.33799331]
[1673790699426,0.46751039,20728.0,20727.0,1.42899331]
[1673790699696,0.46751039,20728.0,20727.0,1.33799331]
[1673790699940,0.46751039,20728.0,20727.0,1.42899331]
[1673790700189,0.46751039,20728.0,20727.0,0.77845033]
[1673790700679,0.46751039,20728.0,20727.0,0.091]
[1673790701960,0.46751039,20728.0,20727.0,0.573462]
[1673790702992,0.54135962,20730.0,20727.0,0.573462]
[1673790704011,0.54135962,20730.0,20727.0,0.482462]
[1673790704277,0.54135962,20730.0,20727.0,0.573462]
[1673790705338,0.54135962,20730.0,20727.0,0.7776581]
[1673790705594,0.54135962,20730.0,20727.0,0.8686581]
[1673790705850,0.54135962,20730.0,20727.0,0.7776581]
[1673790706125,0.54135962,20730.0,20727.0,0.8686581]
[1673790706383,0.04830362,20732.0,20728.0,0.10062678]
[1673790706649,0.04830362,20732.0,20729.0,1.54785978]
[1673790706911,0.00472987,20733.0,20730.0,0.1]
[1673790707174,0.00472987,20733.0,20731.0,0.482369]
[1673790707446,0.00472987,20733.0,20731.0,0.964738]
[1673790707946,0.00472987,20733.0,20732.0,0.4003218]
[1673790708205,0.00472987,20733.0,20732.0,1.3650138]
[1673790709233,0.31394582,20733.0,20732.0,0.482346]
[1673790709505,0.00472987,20733.0,20732.0,0.091]
[1673790710271,0.12321987,20733.0,20732.0,0.091]
[1673790710535,0.44429687,20733.0,20732.0,0.091]
[1673790710784,0.92661887,20733.0,20732.0,0.091]
[1673790711298,1.07063506,20733.0,20732.0,0.091]
[1673790711812,1.2866607,20733.0,20732.0,0.091]
[1673790712069,1.61199468,20733.0,20732.0,0.091]
[1673790712659,1.46797849,20733.0,20732.0,0.091]
[1673790713353,1.12967268,20733.0,20732.0,0.091]
[1673790714138,1.34590787,20733.0,20732.0,0.091]
[1673790714397,1.82822987,20733.0,20732.0,0.091]
[1673790715457,1.97273726,20733.0,20732.0,0.091]
[1673790716758,1.20189168,20733.0,20732.0,0.091]
[1673790717060,0.66053206,20733.0,20732.0,0.091]
[1673790717326,1.49041526,20733.0,20732.0,0.091]
[1673790718092,1.37192526,20733.0,20732.0,0.091]
[1673790718348,0.90665004,20733.0,20732.0,0.091]
[1673790719110,0.69041485,20733.0,20732.0,0.091]
[1673790719360,1.37192526,20733.0,20732.0,0.091]
[1673790719626,1.05084826,20733.0,20732.0,0.091]
[1673790719837,0.76232468,20733.0,20732.0,0.48790919]
[1673790720126,0.90674584,20733.0,20732.0,0.97025519]
[1673790720634,0.69051065,20733.0,20732.0,0.96931469]
[1673790721667,0.90714634,20733.0,20732.0,0.5724055]
[1673790721922,1.54728927,20733.0,20732.0,0.0900595]
[1673790722182,2.22941093,20733.0,20732.0,0.0900595]
[1673790722436,1.94055617,20733.0,20732.0,0.0900595]
[1673790722701,2.22942248,20733.0,20732.0,0.0900595]
[1673790723233,1.39919655,20733.0,20732.0,0.0900595]
[1673790723491,2.22941253,20733.0,20732.0,0.0900595]
[1673790723768,1.22821115,20733.0,20732.0,1.39418993]
[1673790724027,0.69050469,20733.0,20732.0,1.39418993]
[1673790725321,0.6904962,20733.0,20732.0,1.39418993]
[1673790725594,0.54608949,20733.0,20732.0,1.39418993]
[1673790727644,0.54608949,20733.0,20732.0,0.0900595]
[1673790727900,2.19280127,20733.0,20732.0,0.0900595]
[1673790728236,2.90519684,20733.0,20732.0,0.0900595]
[1673790728933,2.90519684,20733.0,20728.0,0.84627809]
[1673790729188,1.76757572,20732.0,20728.0,0.482423]
[1673790729453,0.54135962,20729.0,20728.0,0.482423]
[1673790730478,0.54135962,20729.0,20727.0,0.482443]
[1673790730740,0.54235962,20729.0,20728.0,0.083]
[1673790731522,0.54235962,20729.0,20728.0,0.96626894]
[1673790731794,0.54135962,20729.0,20728.0,0.88326894]
[1673790732587,0.54235962,20729.0,20728.0,0.96626894]
[1673790732841,0.54235962,20729.0,20728.0,1.047878]
[1673790733115,0.001,20729.0,20728.0,1.047878]
[1673790733382,0.001,20729.0,20728.0,1.19199322]
[1673790733629,0.001,20729.0,20728.0,1.49199322]
[1673790734152,0.001,20729.0,20728.0,1.19199322]
[1673790735440,0.001,20729.0,20728.0,1.57218685]
[1673790735692,0.001,20729.0,20728.0,1.19199322]
[1673790736996,0.001,20729.0,20728.0,1.76497905]
[1673790737274,0.001,20729.0,20728.0,1.51710916]
[1673790737522,0.001,20729.0,20728.0,1.37299394]
[1673790738558,0.001,20729.0,20728.0,1.51710916]
[1673790739034,0.44801778,20731.0,20729.0,0.4810292]
[1673790739335,0.44801778,20731.0,20730.0,0.964784]
[1673790740629,0.14442403,20732.0,20730.0,0.964784]
[1673790740890,0.44801778,20731.0,20730.0,0.964784]
[1673790741989,0.44901778,20731.0,20730.0,1.048784]
[1673790742552,0.44901778,20731.0,20730.0,1.44192628]
[1673790742768,0.44801778,20731.0,20730.0,1.35792628]
[1673790743022,0.44901778,20731.0,20730.0,1.44192628]
[1673790743276,0.44801778,20731.0,20730.0,1.35792628]
[1673790743531,0.44901778,20731.0,20730.0,1.44192628]
[1673790746406,0.34401778,20731.0,20730.0,1.44192628]
[1673790746932,0.31901778,20731.0,20730.0,1.44192628]
[1673790749323,0.46349764,20731.0,20730.0,1.44192628]
[1673790750117,0.31901778,20731.0,20730.0,1.44192628]
[1673790750674,0.31901778,20731.0,20730.0,1.44238659]
[1673790751474,0.31901778,20731.0,20730.0,1.44192628]
[1673790755367,0.46355378,20731.0,20730.0,1.44192628]
[1673790756665,0.68038221,20731.0,20730.0,0.95953428]
[1673790756935,0.68038221,20731.0,20730.0,0.084]
[1673790756936,0.53584842,20731.0,20730.0,0.084]
[1673790757191,1.14603604,20731.0,20730.0,0.084]
[1673790757455,0.82495904,20731.0,20730.0,0.084]
[1673790757962,1.14600005,20731.0,20730.0,0.084]
[1673790758217,0.85692542,20731.0,20730.0,0.084]
[1673790758469,1.14600005,20731.0,20730.0,0.084]
[1673790759759,0.53584842,20731.0,20730.0,0.084]
[1673790760016,1.14597482,20731.0,20730.0,0.084]
[1673790760274,1.14597482,20731.0,20728.0,0.482421]
[1673790760538,0.57597725,20730.0,20728.0,0.482421]
[1673790760843,0.14452773,20730.0,20728.0,0.482421]
[1673790761321,0.36132325,20730.0,20728.0,0.007]
[1673790761583,0.36132325,20730.0,20727.0,0.83540525]
[1673790761842,0.5600492,20730.0,20728.0,0.007]
[1673790762170,0.46254551,20729.0,20728.0,0.007]
[1673790762369,1.14492879,20729.0,20728.0,0.007]
[1673790763148,0.8558903,20729.0,20728.0,0.007]
[1673790763428,1.14493912,20729.0,20726.0,0.79673086]
[1673790763666,0.67929294,20729.0,20727.0,0.005]
[1673790763923,0.67929294,20729.0,20726.0,0.79673086]
[1673790764172,0.68729294,20729.0,20728.0,0.03031063]
[1673790764429,0.46249742,20729.0,20728.0,0.40655431]
[1673790764698,0.32601778,20729.0,20728.0,0.40655431]
[1673790765199,0.32601778,20729.0,20728.0,0.88899331]
[1673790765453,0.32601778,20729.0,20728.0,0.50774963]
[1673790766224,0.31801778,20729.0,20728.0,0.50774963]
[1673790766484,0.32601778,20729.0,20728.0,0.51374963]
[1673790767764,0.47049511,20729.0,20728.0,0.51374963]
[1673790768018,0.47049511,20729.0,20728.0,0.03131063]
[1673790769026,0.79157211,20729.0,20728.0,0.03131063]
[1673790769285,0.32601778,20729.0,20728.0,0.51374963]
[1673790769535,0.47049511,20729.0,20728.0,0.51374963]
[1673790769792,0.9654054,20729.0,20728.0,0.03131063]
[1673790770081,1.7822887,20729.0,20728.0,0.03131063]
[1673790770369,2.00974872,20729.0,20728.0,0.03131063]
[1673790770628,1.15275117,20729.0,20728.0,0.03131063]
[1673790770884,0.93604138,20729.0,20728.0,0.03131063]
[1673790771310,1.04775431,20729.0,20728.0,0.03131063]
[1673790771562,0.66156379,20729.0,20728.0,0.03131063]
[1673790771822,0.34048679,20729.0,20728.0,0.03131063]
[1673790772338,0.87827672,20729.0,20728.0,0.03131063]
[1673790772594,0.34048679,20729.0,20728.0,0.03131063]
[1673790773684,0.19601778,20729.0,20728.0,0.03131063]
[1673790776895,0.19601778,20729.0,20728.0,0.33665709]
[1673790777157,0.008,20729.0,20728.0,0.81909609]
[1673790777408,0.008,20729.0,20728.0,1.30153509]
[1673790777409,0.19601778,20729.0,20728.0,1.30153509]
[1673790778451,0.19601778,20729.0,20728.0,0.99618863]
[1673790779243,0.19601778,20729.0,20728.0,1.30962003]
[1673790779758,0.19601778,20729.0,20728.0,0.99618863]
[1673790780034,0.19601778,20729.0,20728.0,0.03131063]
[1673790780319,0.3404653,20729.0,20728.0,0.03131063]
[1673790780578,0.55710961,20729.0,20728.0,0.03131063]
[1673790780829,0.87818661,20729.0,20728.0,0.03131063]
[1673790782092,0.77176361,20729.0,20728.0,0.03131063]
[1673790782345,0.55710961,20729.0,20728.0,0.03131063]
[1673790782952,0.87818661,20729.0,20728.0,0.03131063]
[1673790783898,0.73373909,20729.0,20728.0,0.03131063]
[1673790784158,0.87818718,20729.0,20728.0,0.03131063]
[1673790784423,0.73373909,20729.0,20728.0,0.03131063]
[1673790784708,2.19445176,20729.0,20728.0,0.03131063]
[1673790784964,2.55561417,20729.0,20728.0,0.03131063]
[1673790786023,2.85561417,20729.0,20728.0,0.03131063]
[1673790786278,2.48647085,20729.0,20728.0,0.02531063]
[1673790786543,2.49447085,20729.0,20728.0,0.03031063]
[1673790787415,3.4596149,20729.0,20728.0,0.03031063]
[1673790787861,3.7792701,20729.0,20728.0,0.03031063]
[1673790788141,4.38516141,20729.0,20728.0,0.03031063]
[1673790788398,4.8623631,20729.0,20728.0,0.03031063]
[1673790788656,0.05178757,20727.0,20723.0,0.01409457]
[1673790788914,0.05178757,20727.0,20723.0,0.38263081]
[1673790788915,0.3610214,20724.0,20723.0,0.38263081]
[1673790789169,0.87011618,20724.0,20723.0,0.38263081]
[1673790789440,0.87011618,20724.0,20723.0,0.01409457]
[1673790790218,0.87011618,20724.0,20723.0,0.32565349]
[1673790790469,0.3610214,20724.0,20723.0,0.01409457]
[1673790790957,0.55803918,20724.0,20723.0,0.97920457]
[1673790791209,0.55803918,20724.0,20723.0,1.28464389]
[1673790792779,0.19701778,20724.0,20723.0,1.28464389]
[1673790793038,0.18801778,20724.0,20723.0,1.28464389]
[1673790793327,0.19701778,20724.0,20723.0,1.28464389]
[1673790793581,0.18801778,20724.0,20723.0,1.28464389]
[1673790793832,0.19701778,20724.0,20723.0,1.28464389]
[1673790794101,0.19701778,20724.0,20723.0,0.01409457]
[1673790794380,0.51809478,20724.0,20723.0,0.01409457]
[1673790795130,0.52709478,20724.0,20723.0,0.01409457]
[1673790795395,0.18801778,20724.0,20723.0,0.01409457]
[1673790795643,0.10758,20724.0,20723.0,0.01409457]
[1673790795913,0.29559778,20724.0,20723.0,0.01409457]
[1673790796173,0.30459778,20724.0,20723.0,0.01409457]
[1673790796426,0.11658,20724.0,20723.0,0.01409457]
[1673790796688,0.30459778,20724.0,20723.0,0.01409457]
[1673790797243,0.19701778,20724.0,20723.0,0.35520892]
[1673790797529,0.19701778,20724.0,20723.0,1.32031892]
[1673790798584,0.19701778,20724.0,20723.0,1.32001892]
[1673790800865,0.19701778,20724.0,20723.0,1.27478892]
[1673790802215,0.009,20724.0,20723.0,1.27478892]
[1673790802533,0.18801778,20725.0,20723.0,1.27478892]
[1673790802785,0.11658,20724.0,20723.0,0.96511]
[1673790803036,0.13994778,20724.0,20723.0,0.482555]
[1673790804085,0.13094778,20724.0,20723.0,0.482555]
[1673790804343,0.45202478,20724.0,20722.0,0.00990034]
[1673790804599,0.47265466,20722.0,20721.0,0.4962269]
[1673790804856,0.47265466,20722.0,20721.0,0.0136439]
[1673790805124,0.98174944,20722.0,20721.0,0.0136439]
[1673790805384,0.66067244,20722.0,20721.0,0.0136439]
[1673790805646,0.66061244,20722.0,20721.0,0.0136439]
[1673790805904,0.66961244,20722.0,20721.0,0.0136439]
[1673790807169,0.66061244,20722.0,20721.0,0.0136439]
[1673790807426,0.19701778,20722.0,20721.0,0.0136439]
[1673790808705,0.19701778,20722.0,20721.0,0.30696081]
[1673790808979,0.19701778,20722.0,20721.0,0.78956281]
[1673790809218,0.009,20722.0,20721.0,0.9788479]
[1673790809466,0.009,20722.0,20721.0,1.31300128]
[1673790809979,0.18801778,20725.0,20721.0,1.31300128]
[1673790810264,0.009,20722.0,20721.0,1.07947468]
[1673790810492,0.18801778,20725.0,20721.0,0.9788479]
[1673790810749,0.009,20722.0,20721.0,1.41028038]
[1673790811003,0.18801778,20725.0,20721.0,1.3096536]
[1673790811262,0.19701778,20725.0,20721.0,1.07947468]
[1673790811756,0.19701778,20725.0,20722.0,0.39693524]
[1673790812015,0.19701778,20725.0,20723.0,0.96511]
[1673790813015,0.18801778,20725.0,20723.0,0.96511]
[1673790814026,0.18801778,20725.0,20721.0,0.4962309]
[1673790814027,0.87025273,20725.0,20721.0,0.4962309]
[1673790814331,0.5406393,20724.0,20721.0,0.0136439]
[1673790814585,0.18801778,20722.0,20721.0,0.0136439]
[1673790815871,0.50909478,20722.0,20721.0,0.0136439]
[1673790816124,0.18801778,20722.0,20721.0,0.0136439]
[1673790816895,0.19701778,20722.0,20721.0,0.0136439]
[1673790817148,0.2359441,20722.0,20721.0,0.0136439]
[1673790817406,0.5570211,20722.0,20721.0,0.0136439]
[1673790817663,0.5570211,20722.0,20721.0,0.21404068]
[1673790817664,0.018,20722.0,20721.0,0.21404068]
[1673790817922,0.55431123,20726.0,20721.0,1.17924468]
[1673790818225,0.19374454,20726.0,20722.0,1.13255545]
[1673790818483,0.04944387,20726.0,20723.0,2.51868746]
[1673790818750,0.04944387,20726.0,20724.0,0.88848646]
[1673790819005,0.04944387,20726.0,20725.0,1.447527]
[1673790819276,0.18801778,20728.0,20725.0,1.547527]
[1673790819539,0.18801778,20728.0,20725.0,1.64815378]
[1673790819800,0.18801778,20728.0,20726.0,0.2900634]
[1673790820052,0.18801778,20728.0,20727.0,0.964924]
[1673790820309,0.21909153,20728.0,20727.0,0.964924]
[1673790821436,0.21909153,20728.0,20727.0,1.065924]
[1673790822273,0.18801778,20728.0,20727.0,1.065924]
[1673790823584,0.18801778,20728.0,20727.0,0.964924]
[1673790823847,0.18801778,20728.0,20727.0,1.065924]
[1673790825147,0.17538254,20729.0,20727.0,1.065924]
[1673790825412,0.18801778,20728.0,20727.0,1.065924]
[1673790825703,0.18801778,20728.0,20727.0,0.101]
[1673790825704,0.21132046,20728.0,20727.0,0.101]
[1673790825940,0.35564927,20728.0,20727.0,0.101]
[1673790826200,0.35564927,20728.0,20725.0,0.86588066]
[1673790826455,0.76287572,20728.0,20727.0,0.101]
[1673790826719,0.7165093,20728.0,20725.0,0.482489]
[1673790827025,0.57215549,20728.0,20727.0,0.101]
[1673790827245,0.57215549,20728.0,20725.0,0.482489]
[1673790827764,0.57215549,20728.0,20725.0,0.583489]
[1673790828015,0.02418142,20727.0,20725.0,0.583489]
[1673790828537,0.02418142,20727.0,20725.0,0.482489]
[1673790829655,0.02418142,20727.0,20725.0,0.583489]
[1673790829841,0.18801778,20728.0,20726.0,0.34086066]
[1673790830370,0.18801778,20728.0,20726.0,1.30581566]
[1673790831683,0.18801778,20728.0,20726.0,1.40681566]
[1673790832727,0.02671313,20729.0,20726.0,1.40681566]
[1673790832988,0.18801778,20727.0,20726.0,1.40681566]
[1673790834031,0.18801778,20727.0,20726.0,0.92433066]
[1673790834555,0.18801778,20727.0,20726.0,0.101]
[1673790834556,0.21181396,20727.0,20726.0,0.101]
[1673790835101,0.21181396,20727.0,20724.0,0.81987633]
[1673790835365,0.40253991,20727.0,20726.0,0.101]
[1673790835621,0.21181396,20727.0,20726.0,0.101]
[1673790835871,0.21181396,20727.0,20725.0,0.37777375]
[1673790836380,0.02291425,20726.0,20723.0,0.77209856]
[1673790836907,0.18801778,20725.0,20723.0,0.77209856]
[1673790837163,0.18801778,20726.0,20723.0,0.965102]
[1673790837498,0.18801778,20726.0,20725.0,0.35545065]
[1673790837922,0.18801778,20726.0,20725.0,0.45645065]
[1673790838146,0.18801778,20726.0,20725.0,0.35545065]
[1673790838894,0.18801778,20726.0,20725.0,0.45645065]
[1673790839147,0.18801778,20726.0,20725.0,0.35545065]
[1673790839401,0.18801778,20726.0,20725.0,0.45645065]
[1673790840152,0.18801778,20726.0,20725.0,0.35545065]
[1673790840411,0.23591985,20728.0,20725.0,0.93895965]
[1673790840711,0.23591985,20728.0,20726.0,0.35365655]
[1673790841229,0.18801778,20728.0,20726.0,0.35365655]
[1673790841734,0.21773801,20728.0,20726.0,0.45465655]
[1673790841992,0.36202542,20728.0,20726.0,0.35365655]
[1673790842256,0.36202542,20728.0,20725.0,0.482509]
[1673790842798,0.21764609,20728.0,20725.0,0.79869267]
[1673790843069,0.18792586,20728.0,20726.0,0.49034121]
[1673790843324,0.18792586,20728.0,20727.0,0.40089932]
[1673790844600,0.18792586,20728.0,20727.0,0.50189932]
[1673790844856,0.18792586,20728.0,20726.0,0.964948]
[1673790845122,0.18792586,20728.0,20727.0,0.101]
[1673790846184,0.18792586,20728.0,20726.0,0.964948]
[1673790846494,0.18792586,20728.0,20727.0,0.101]
[1673790846714,0.33221327,20728.0,20725.0,0.482509]
[1673790846971,0.101,20726.0,20724.0,0.482513]
[1673790847223,0.18792586,20725.0,20723.0,0.8812426]
[1673790847472,0.37865181,20725.0,20723.0,0.8812426]
[1673790847730,0.18792586,20725.0,20723.0,0.8812426]
[1673790848796,0.27239075,20726.0,20723.0,0.8812426]
[1673790848797,0.12800908,20726.0,20723.0,0.8812426]
[1673790849108,0.18792586,20724.0,20723.0,0.9822426]
[1673790849307,0.18792586,20724.0,20723.0,0.8812426]
[1673790849560,0.18792586,20724.0,20723.0,0.9822426]
[1673790850065,0.18792586,20724.0,20723.0,1.0832426]
[1673790850625,0.18792586,20724.0,20723.0,1.5657976]
[1673790852165,0.18792586,20724.0,20723.0,1.3637976]